bitfinex/quotes_SOLUSD_20260309
["timestamp","ask_amount","ask_price","bid_price","bid_amount"]
[1773033539215,4.3875265,83.402,83.381,11.99313992]
[1773033539421,3.012791,83.403,83.382,0.02167142]
[1773033541116,3.012791,83.403,83.39,4.41934554]
[1773033542020,3.012791,83.403,83.391,11.99170174]
[1773033542324,4.3875265,83.416,83.392,0.02721648]
[1773033542624,4.3875265,83.416,83.4,4.41934554]
[1773033544212,4.3875265,83.416,83.397,11.99073429]
[1773033545830,4.3875265,83.416,83.39,34.39880005]
[1773033545831,4.3875265,83.414,83.39,4.41934554]
[1773033546033,4.3875265,83.414,83.388,11.9920053]
[1773033546414,4.3875265,83.412,83.382,0.03591841]
[1773033546614,4.3875265,83.412,83.381,11.99313992]
[1773033547533,4.3875265,83.409,83.381,11.99313992]
[1773033547733,4.3875265,83.399,83.361,11.99601732]
[1773033547924,4.3875265,83.399,83.361,12.03530472]
[1773033548610,4.3875265,83.397,83.362,0.04095446]
[1773033550934,4.3875265,83.395,83.362,0.04095446]
[1773033552329,4.3875265,83.393,83.362,0.04095446]
[1773033553938,4.3875265,83.393,83.37,4.41934554]
[1773033554342,4.3875265,83.391,83.37,4.41934554]
[1773033557838,4.3875265,83.391,83.371,11.99457845]
[1773033558039,4.3875265,83.408,83.381,0.04095908]
[1773033558749,4.3875265,83.408,83.376,0.04031175]
[1773033562050,4.3875265,83.406,83.376,0.04031175]
[1773033562344,4.3875265,83.406,83.371,11.99457845]
[1773033562530,4.3875265,83.406,83.371,12.03286053]
[1773033564548,4.3875265,83.404,83.372,0.03704524]
[1773033569949,4.3875265,83.402,83.372,0.03704524]
[1773033571640,4.3875265,83.407,83.381,0.03237504]
[1773033572351,4.3875265,83.407,83.382,0.03237504]
[1773033572942,4.3875265,83.407,83.381,11.99313992]
[1773033572943,4.3875265,83.412,83.391,0.03127346]
[1773033575159,4.61934554,83.42,83.391,0.03127346]
[1773033575160,4.3875265,83.419,83.392,0.0301853]
[1773033577459,4.3875265,83.418,83.392,0.0301853]
[1773033577852,4.3875265,83.418,83.391,11.99170174]
[1773033578052,4.3875265,83.418,83.39,4.41934554]
[1773033578863,4.3875265,83.418,83.39,16.41109135]
[1773033579456,4.3875265,83.416,83.39,16.41109135]
[1773033580047,4.3875265,83.416,83.39,16.43864828]
[1773033580850,4.3875265,83.416,83.391,0.02700283]
[1773033581163,0.2,83.42,83.41,4.41934554]
[1773033581660,4.5875265,83.42,83.4,4.41934554]
[1773033581846,4.3875265,83.418,83.391,0.02649506]
[1773033582050,4.3875265,83.418,83.391,12.0181968]
[1773033582359,4.3875265,83.418,83.388,11.99207834]
[1773033582956,4.3875265,83.418,83.382,11.99291531]
[1773033583251,4.3875265,83.418,83.39,4.41934554]
[1773033583457,4.3875265,83.418,83.382,11.99291531]
[1773033583763,41.95686833,83.419,83.382,11.99291531]
[1773033583764,4.3875265,83.416,83.382,11.99291531]
[1773033585374,4.3875265,83.414,83.382,11.99291531]
[1773033588472,4.3875265,83.414,83.349,59.98851944]
[1773033588473,4.3875265,83.389,83.357,11.99659296]
[1773033590466,4.3875265,83.387,83.356,29.99161094]
[1773033592654,11.99242079,83.386,83.356,29.99161094]
[1773033592850,4.3875265,83.385,83.356,29.99161094]
[1773033595873,4.3875265,83.383,83.351,11.99745653]
[1773033596169,4.3875265,83.379,83.351,11.99745653]
[1773033596558,4.3875265,83.379,83.347,11.99798114]
[1773033597455,4.3875265,83.377,83.343,29.99616486]
[1773033598156,4.3875265,83.377,83.35,4.41787633]
[1773033599470,4.3875265,83.377,83.351,11.99745653]
[1773033599673,4.3875265,83.376,83.351,11.99745653]
[1773033600788,4.3875265,83.375,83.351,11.99745653]
[1773033601598,4.3875265,83.369,83.33,4.41787633]
[1773033601877,4.3875265,83.369,83.31,60.01635227]
[1773033601878,4.3875265,83.349,83.311,12.00321686]
[1773033602057,4.3875265,83.339,83.307,12.00376457]
[1773033602887,4.3875265,83.339,83.302,12.00439095]
[1773033603578,4.3875265,83.327,83.3,100.0]
[1773033603760,4.3875265,83.319,83.3,100.0]
[1773033605681,4.3875265,83.317,83.3,98.24163234]
[1773033605888,4.11276758,83.309,83.3,82.19758245]
[1773033606089,4.11276758,83.309,83.3,79.32577592]
[1773033607971,3.91633872,83.307,83.29,0.1]
[1773033609273,4.41787633,83.31,83.29,0.1]
[1773033609274,4.41787633,83.32,83.291,4.06757817]
[1773033609471,3.92860171,83.329,83.291,4.06757817]
[1773033609700,12.00076804,83.328,83.291,4.06757817]
[1773033609923,3.93462778,83.327,83.291,4.06757817]
[1773033610307,3.93462778,83.319,83.291,4.06757817]
[1773033610618,3.93462778,83.309,83.29,0.1]
[1773033611599,3.93462778,83.309,83.29,4.16757817]
[1773033611999,4.41787633,83.32,83.29,4.51787633]
[1773033612187,4.41787633,83.32,83.291,4.06757817]
[1773033612894,3.94386729,83.322,83.291,4.06757817]
[1773033613907,3.94386729,83.322,83.293,4.06757817]
[1773033614287,4.41787633,83.33,83.293,4.06757817]
[1773033614509,4.41787633,83.33,83.292,42.02084233]
[1773033614510,12.00005865,83.333,83.301,4.06757817]
[1773033614696,11.99976,83.335,83.301,4.06757817]
[1773033614893,3.95349078,83.329,83.301,4.06757817]
[1773033615821,3.95349078,83.329,83.292,42.02084233]
[1773033615822,3.95662521,83.334,83.303,4.06757817]
[1773033616019,3.95662521,83.329,83.303,4.06757817]
[1773033616813,4.41787633,83.33,83.304,12.00422548]
[1773033617014,4.41787633,83.33,83.305,4.06757817]
[1773033617604,3.95972363,83.328,83.305,4.06757817]
[1773033618115,3.96278646,83.319,83.294,12.00566667]
[1773033618607,3.96581412,83.309,83.29,0.1]
[1773033619114,4.31367244,83.308,83.287,2.38295617]
[1773033619298,4.31367244,83.308,83.288,12.00653155]
[1773033619494,4.31367244,83.327,83.288,12.00653155]
[1773033619691,4.31367244,83.329,83.29,4.41787633]
[1773033619914,4.41787633,83.31,83.283,12.00714798]
[1773033620103,4.31367244,83.299,83.28,0.1]
[1773033620797,4.31367244,83.306,83.281,12.00754073]
[1773033621095,4.31367244,83.306,83.28,0.1]
[1773033621096,16.31771859,83.306,83.284,4.06757817]
[1773033622512,4.31367244,83.305,83.28,4.16757817]
[1773033622709,4.41787633,83.31,83.28,4.16757817]
[1773033622893,4.31367244,83.319,83.281,4.06757817]
[1773033623308,12.00135419,83.324,83.291,4.06757817]
[1773033623493,4.31367244,83.326,83.291,4.06757817]
[1773033624409,12.00120012,83.325,83.291,4.06757817]
[1773033624707,4.31367244,83.324,83.293,4.06757817]
[1773033627698,8.73154877,83.32,83.293,4.06757817]
[1773033627898,4.41787633,83.32,83.293,4.06757817]
[1773033628097,8.73154877,83.32,83.293,4.06757817]
[1773033628408,4.31367244,83.319,83.293,4.06757817]
[1773033629401,4.31367244,83.319,83.281,4.06757817]
[1773033629821,4.31367244,83.317,83.281,12.00741502]
[1773033630117,4.31367244,83.309,83.282,4.06757817]
[1773033630327,4.31367244,83.309,83.281,12.00741502]
[1773033631019,4.31367244,83.299,83.28,0.1]
[1773033631320,4.31367244,83.324,83.291,4.06757817]
[1773033632219,4.31367244,83.322,83.293,4.06757817]
[1773033633805,2.54326706,83.328,83.293,4.06757817]
[1773033633806,4.41513963,83.32,83.293,4.06757817]
[1773033634205,4.41513963,83.32,83.295,4.17329816]
[1773033634424,4.41513963,83.325,83.295,4.17329816]
[1773033635631,0.2,83.43,83.32,8.83575266]
[1773033635851,0.2,83.43,83.361,4.17329816]
[1773033635852,11.98587238,83.387,83.361,4.17329816]
[1773033636001,11.99242079,83.386,83.361,4.17329816]
[1773033636208,4.41513963,83.385,83.361,4.17329816]
[1773033636429,4.41513963,83.385,83.36,45.0832112]
[1773033636430,4.41513963,83.369,83.322,4.17329816]
[1773033636636,4.41513963,83.366,83.331,4.17329816]
[1773033637216,0.28432314,83.38,83.324,4.17329816]
[1773033637217,4.41513963,83.359,83.324,4.17329816]
[1773033637903,4.41513963,83.358,83.326,4.17329816]
[1773033638810,4.41513963,83.358,83.331,4.17329816]
[1773033639009,4.41513963,83.369,83.331,4.17329816]
[1773033639527,4.41513963,83.369,83.325,12.00120012]
[1773033639528,4.41513963,83.369,83.341,4.17329816]
[1773033640217,16.41000582,83.369,83.343,4.17329816]
[1773033641215,4.41513963,83.368,83.343,4.17329816]
[1773033642526,4.41787633,83.39,83.351,4.17329816]
[1773033642722,11.99270843,83.384,83.361,4.17329816]
[1773033643321,11.99270843,83.384,83.304,12.00422548]
[1773033643322,4.41513963,83.367,83.304,12.00422548]
[1773033643523,4.41513963,83.359,83.321,4.17329816]
[1773033644621,11.99615181,83.361,83.331,4.17329816]
[1773033645018,16.41129144,83.361,83.331,4.17329816]
[1773033645816,0.28432314,83.38,83.341,4.17329816]
[1773033645817,4.41513963,83.378,83.341,4.17329816]
[1773033646510,4.41513963,83.376,83.343,4.17329816]
[1773033648123,11.99400299,83.375,83.343,4.17329816]
[1773033648322,4.41513963,83.374,83.343,4.17329816]
[1773033649232,4.42322192,83.37,83.343,4.17329816]
[1773033649435,4.41513963,83.369,83.343,4.17329816]
[1773033649631,11.99400299,83.375,83.35,4.42322192]
[1773033649823,11.99400299,83.375,83.351,4.17329816]
[1773033650341,4.41513963,83.375,83.351,4.17329816]
[1773033650864,4.41513963,83.378,83.353,4.17329816]
[1773033651145,4.41513963,83.378,83.32,4.42322192]
[1773033651146,4.41513963,83.369,83.34,4.42322192]
[1773033651326,4.41513963,83.369,83.337,4.17329816]
[1773033651638,4.41513963,83.369,83.34,4.42322192]
[1773033651824,4.41513963,83.369,83.341,4.17329816]
[1773033652024,4.41513963,83.376,83.341,4.17329816]
[1773033653238,16.40914262,83.375,83.343,4.17329816]
[1773033653842,4.41513963,83.374,83.343,4.17329816]
[1773033654939,4.41513963,83.369,83.331,4.17329816]
[1773033655247,4.41513963,83.367,83.332,4.17329816]
[1773033655940,4.41513963,83.359,83.332,4.17329816]
[1773033657543,4.41513963,83.357,83.318,4.17329816]
[1773033657734,4.41513963,83.357,83.321,4.17329816]
[1773033660342,4.42322192,83.36,83.331,4.17329816]
[1773033660343,11.99673688,83.356,83.331,4.17329816]
[1773033660527,59.96155928,83.387,83.331,4.17329816]
[1773033660528,4.41513963,83.367,83.331,4.17329816]
[1773033660929,11.99501007,83.368,83.341,4.17329816]
[1773033662053,41.98253525,83.368,83.341,4.17329816]
[1773033662441,29.98752518,83.368,83.341,4.17329816]
[1773033662643,4.41513963,83.367,83.341,4.17329816]
[1773033662948,29.98752518,83.368,83.31,4.42322192]
[1773033662949,4.41513963,83.349,83.31,4.42322192]
[1773033663136,4.42508291,83.339,83.31,4.42322192]
[1773033664151,4.42508291,83.339,83.32,4.42322192]
[1773033664552,16.42282733,83.349,83.32,4.42322192]
[1773033664754,11.99774442,83.349,83.331,4.19260307]
[1773033665058,0.53756337,83.364,83.341,4.19260307]
[1773033665350,4.42508291,83.378,83.321,12.00177626]
[1773033665351,4.42508291,83.396,83.351,4.19260307]
[1773033665554,4.42508291,83.396,83.37,4.42322192]
[1773033665732,4.42508291,83.396,83.366,4.19260307]
[1773033666134,4.42508291,83.396,83.353,4.19260307]
[1773033666344,4.42508291,83.389,83.351,4.19260307]
[1773033667344,4.42322192,83.39,83.351,4.19260307]
[1773033667345,4.42508291,83.387,83.351,4.19260307]
[1773033667661,4.42508291,83.398,83.371,4.19260307]
[1773033667948,4.42508291,83.397,83.361,4.19260307]
[1773033668154,4.42508291,83.389,83.36,4.42322192]
[1773033668848,4.42508291,83.389,83.361,4.42772542]
[1773033669052,7.57426471,83.399,83.381,4.42772542]
[1773033669243,4.05619732,83.398,83.37,4.42322192]
[1773033669447,4.05619732,83.389,83.351,4.42772542]
[1773033670038,4.05619732,83.389,83.36,4.42322192]
[1773033671156,4.05619732,83.387,83.36,8.85094734]
[1773033671750,4.05619732,83.387,83.361,4.42772542]
[1773033673153,4.05619732,83.385,83.353,4.42772542]
[1773033673397,4.05619732,83.379,83.35,4.42322192]
[1773033674178,4.05619732,83.369,83.33,8.85094734]
[1773033674645,4.05619732,83.369,83.331,4.42772542]
[1773033675769,41.98253525,83.368,83.331,4.42772542]
[1773033675963,4.05619732,83.367,83.331,4.42772542]
[1773033676166,4.05619732,83.367,83.332,4.42772542]
[1773033676468,11.99501007,83.368,83.341,4.42772542]
[1773033676645,11.99501007,83.368,83.351,4.42772542]
[1773033678168,4.05619732,83.376,83.351,4.42772542]
[1773033678667,4.05619732,83.376,83.344,4.42772542]
[1773033679957,41.97901048,83.375,83.344,4.42772542]
[1773033680272,4.05619732,83.359,83.328,4.42772542]
[1773033680973,4.05619732,83.359,83.331,4.42772542]
[1773033681273,4.05619732,83.359,83.321,4.42772542]
[1773033682157,4.05619732,83.357,83.322,4.42772542]
[1773033683055,11.99644905,83.358,83.331,4.42772542]
[1773033685159,4.05619732,83.358,83.331,4.42772542]
[1773033686353,16.05279028,83.357,83.331,4.42772542]
[1773033687170,16.05279028,83.357,83.333,4.42772542]
[1773033687560,4.05619732,83.357,83.333,4.42772542]
[1773033688680,11.99628005,83.36,83.335,4.42772542]
[1773033690268,11.99628005,83.36,83.302,60.02240545]
[1773033690269,16.04962492,83.379,83.351,4.42772542]
[1773033690470,11.99286419,83.383,83.36,4.42322192]
[1773033690678,4.05619732,83.396,83.361,4.42772542]
[1773033691350,11.99112656,83.395,83.371,4.42772542]
[1773033691974,3.89383402,83.42,83.342,0.28432314]
[1773033691975,0.2,83.42,83.381,4.42772542]
[1773033692185,4.05619732,83.417,83.389,4.42772542]
[1773033692777,11.98782037,83.418,83.36,4.42322192]
[1773033692778,11.98782037,83.418,83.391,4.42772542]
[1773033693195,4.39276924,83.417,83.391,4.42772542]
[1773033694462,0.2,83.42,83.401,4.11771822]
[1773033694887,0.2,83.44,83.413,4.11771822]
[1773033695185,0.2,83.44,83.421,4.11771822]
[1773033695899,4.39276924,83.438,83.41,4.42322192]
[1773033696057,4.39276924,83.438,83.411,4.11771822]
[1773033696262,12.18476965,83.44,83.421,4.11771822]
[1773033696588,0.2,83.44,83.421,4.11771822]
[1773033696878,0.2,83.46,83.431,4.11771822]
[1773033697051,0.2,83.46,83.441,4.11771822]
[1773033697257,5.23384511,83.469,83.452,4.11771822]
[1773033697457,0.2,83.48,83.461,4.11771822]
[1773033698085,0.2,83.48,83.47,11.81248973]
[1773033698302,11.9790606,83.479,83.468,4.11771822]
[1773033698466,0.2,83.48,83.47,11.81248973]
[1773033698778,0.2,83.49,83.471,4.11771822]
[1773033699483,0.1,83.5,83.461,11.98160689]
[1773033699484,0.1,83.5,83.481,4.11771822]
[1773033699782,0.1,83.53,83.491,4.11771822]
[1773033699981,11.97309494,83.521,83.491,4.11771822]
[1773033700167,4.39276924,83.524,83.5,11.81248973]
[1773033701163,0.1,83.53,83.51,11.81248973]
[1773033703283,0.1,83.53,83.511,4.11771822]
[1773033703482,0.1,83.53,83.511,16.09218864]
[1773033703686,4.39276924,83.565,83.531,4.11771822]
[1773033703984,12.01248973,83.64,83.576,4.11771822]
[1773033703985,0.34395144,83.591,83.576,4.11771822]
[1773033704184,4.39276924,83.607,83.58,11.81248973]
[1773033704368,7.56675683,83.609,83.59,11.81248973]
[1773033704562,4.39276924,83.607,83.536,0.28432314]
[1773033704788,7.56675683,83.609,83.59,11.81248973]
[1773033705079,11.95774413,83.628,83.6,11.81248973]
[1773033705280,4.39276924,83.632,83.61,11.81248973]
[1773033705581,4.39276924,83.632,83.61,11.76970804]
[1773033706070,4.39276924,83.619,83.59,11.76970804]
[1773033706680,4.39276924,83.609,83.555,2.25959882]
[1773033706873,4.39276924,83.609,83.58,11.76970804]
[1773033707186,11.96057793,83.608,83.58,11.76970804]
[1773033707377,4.39276924,83.607,83.57,11.76970804]
[1773033707570,4.39276924,83.599,83.551,2.25959882]
[1773033707767,4.39276924,83.599,83.54,3.69383402]
[1773033707768,4.39276924,83.589,83.56,11.76970804]
[1773033708164,4.39276924,83.589,83.55,11.76970804]
[1773033709181,4.39276924,83.587,83.55,11.76970804]
[1773033709378,11.96248328,83.595,83.561,2.25959882]
[1773033709579,4.39276924,83.607,83.58,11.76970804]
[1773033709788,11.95900453,83.619,83.58,11.76970804]
[1773033709982,4.39276924,83.616,83.555,2.54392196]
[1773033710275,4.39276924,83.609,83.57,11.76970804]
[1773033710598,4.39276924,83.609,83.58,11.76970804]
[1773033711289,4.39276924,83.609,83.581,11.96444167]
[1773033711695,4.39276924,83.599,83.57,11.76970804]
[1773033711878,4.39276924,83.599,83.561,2.25959882]
[1773033712075,4.39276924,83.599,83.56,11.76970804]
[1773033712577,4.39276924,83.599,83.57,11.76970804]
[1773033714284,4.39276924,83.599,83.571,14.22547214]
[1773033715284,4.39276924,83.598,83.56,11.76970804]
[1773033715484,4.39276924,83.589,83.553,15.66228518]
[1773033716200,4.39276924,83.589,83.56,11.76970804]
[1773033717405,11.96343972,83.588,83.56,11.76970804]
[1773033717588,4.39276924,83.579,83.55,11.76970804]
[1773033717775,4.39276924,83.579,83.441,47.93785494]
[1773033717776,11.76970804,83.59,83.561,2.25959882]
[1773033717981,4.39276924,83.599,83.57,11.76970804]
[1773033718292,4.39276924,83.599,83.563,2.25959882]
[1773033718695,4.39276924,83.599,83.548,11.96916742]
[1773033718696,4.39276924,83.599,83.571,2.25959882]
[1773033719202,4.39276924,83.599,83.57,11.76970804]
[1773033719908,4.39276924,83.599,83.571,11.96587332]
[1773033721308,4.39276924,83.619,83.581,2.25959882]
[1773033721699,4.39276924,83.609,83.573,41.87955439]
[1773033721907,4.39276924,83.609,83.574,2.25959882]
[1773033722100,4.39276924,83.599,83.573,11.96558697]
[1773033722791,4.39276924,83.599,83.573,14.22518579]
[1773033723814,4.38194675,83.609,83.574,2.25959882]
[1773033724506,4.38194675,83.62,83.591,2.25959882]
[1773033724900,4.38194675,83.619,83.58,11.76970804]
[1773033725102,4.38194675,83.619,83.581,2.25959882]
[1773033725927,4.38194675,83.617,83.582,11.96429853]
[1773033726110,4.38194675,83.617,83.583,2.25959882]
[1773033726507,4.38194675,83.617,83.582,11.96429853]
[1773033726694,4.38194675,83.599,83.561,11.96730532]
[1773033727709,4.38194675,83.569,83.54,11.76970804]
[1773033727906,4.38194675,83.569,83.539,44.15619801]
[1773033728212,4.38194675,83.569,83.54,11.76970804]
[1773033728514,4.42394722,83.577,83.541,2.25959882]
[1773033728906,11.76970804,83.6,83.57,11.76970804]
[1773033729098,4.42394722,83.606,83.571,2.25959882]
[1773033729498,11.76970804,83.6,83.571,2.25959882]
[1773033729799,11.76970804,83.59,83.56,14.02930686]
[1773033729999,4.42394722,83.587,83.561,11.96730532]
[1773033730311,4.42394722,83.587,83.555,2.25959882]
[1773033730617,11.96270954,83.594,83.561,2.25959882]
[1773033730793,4.42394722,83.595,83.561,2.25959882]
[1773033731114,4.42394722,83.589,83.556,11.96802144]
[1773033731620,11.96200866,83.598,83.561,2.25959882]
[1773033731815,11.96200866,83.598,83.56,11.76970804]
[1773033731816,4.42394722,83.608,83.571,2.25959882]
[1773033732011,4.42394722,83.608,83.572,11.96573014]
[1773033732210,4.42394722,83.608,83.573,2.25959882]
[1773033733020,4.42394722,83.608,83.572,41.88005551]
[1773033733021,4.42394722,83.617,83.581,2.25959882]
[1773033733222,11.9594336,83.616,83.581,2.25959882]
[1773033733440,11.9594336,83.616,83.53,11.76970804]
[1773033733441,4.42394722,83.589,83.53,11.76970804]
[1773033733606,4.42394722,83.597,83.551,2.25959882]
[1773033733921,4.42394722,83.597,83.532,41.90011012]
[1773033733922,4.42394722,83.597,83.561,2.25959882]
[1773033734118,11.76970804,83.59,83.562,14.22676092]
[1773033734320,4.42394722,83.589,83.557,11.96777015]
[1773033734622,11.96229484,83.596,83.561,2.25959882]
[1773033734915,4.42394722,83.595,83.561,2.25959882]
[1773033735813,11.76970804,83.59,83.561,2.25959882]
[1773033736018,4.42394722,83.595,83.561,2.25959882]
[1773033736401,4.42394722,83.593,83.562,14.22676092]
[1773033737913,4.42394722,83.593,83.563,2.25959882]
[1773033738122,11.76970804,83.6,83.563,2.25959882]
[1773033738318,23.73144893,83.6,83.563,2.25959882]
[1773033738510,23.73144893,83.6,83.56,11.76970804]
[1773033738511,16.19365526,83.6,83.565,2.25959882]
[1773033738705,16.19365526,83.6,83.564,41.8840649]
[1773033738706,4.42394722,83.6,83.571,2.25959882]
[1773033740318,16.38581279,83.599,83.571,2.25959882]
[1773033740497,4.42394722,83.589,83.553,3.69383402]
[1773033741207,4.42394722,83.589,83.542,0.28432314]
[1773033741208,4.42394722,83.579,83.541,11.97017033]
[1773033741413,4.42394722,83.569,83.541,11.97017033]
[1773033742723,4.42394722,83.567,83.532,11.97146003]
[1773033743015,4.42394722,83.559,83.532,11.97146003]
[1773033744325,4.42394722,83.559,83.532,41.90011012]
[1773033744824,4.42394722,83.557,83.532,11.97146003]
[1773033745203,11.76970804,83.58,83.541,2.25959882]
[1773033745406,4.42394722,83.578,83.541,2.25959882]
[1773033745723,11.96409113,83.584,83.551,2.25959882]
[1773033745925,4.42394722,83.583,83.551,2.25959882]
[1773033746103,4.42394722,83.579,83.532,11.97146003]
[1773033746309,4.42394722,83.559,83.531,47.63579168]
[1773033748322,4.42394722,83.559,83.531,49.8953905]
[1773033749014,4.42394722,83.558,83.531,35.66421191]
[1773033749320,4.42394722,83.558,83.532,11.97146003]
[1773033749513,4.42394722,83.558,83.531,35.66421191]
[1773033750023,4.42394722,83.539,83.5,2.25959882]
[1773033750210,4.42394722,83.519,83.488,19.44647665]
[1773033750405,4.42394722,83.519,83.49,11.76970804]
[1773033750732,4.42394722,83.519,83.488,19.44647665]
[1773033751025,3.69383402,83.556,83.488,19.44647665]
[1773033751026,4.42394722,83.509,83.488,19.44647665]
[1773033751210,4.42394722,83.507,83.488,7.46870739]
[1773033751519,4.42394722,83.515,83.488,5.66870739]
[1773033751905,4.42394722,83.509,83.488,5.66870739]
[1773033752109,4.42394722,83.499,83.488,5.66870739]
[1773033752608,4.42394722,83.499,83.48,0.2]
[1773033753008,4.0785435,83.492,83.48,0.2]
[1773033753322,3.69383402,83.536,83.482,4.22521129]
[1773033753529,4.0785435,83.538,83.501,4.22521129]
[1773033753708,4.0785435,83.529,83.501,4.22521129]
[1773033753910,4.0785435,83.529,83.491,4.22521129]
[1773033754526,41.8966464,83.539,83.481,41.92570764]
[1773033754527,4.0785435,83.539,83.501,4.22521129]
[1773033754702,4.0785435,83.539,83.482,0.28432314]
[1773033754703,4.0785435,83.539,83.511,4.22521129]
[1773033754905,4.0785435,83.549,83.521,4.22521129]
[1773033755108,4.0785435,83.549,83.52,11.76970804]
[1773033755109,4.0785435,83.549,83.523,4.22521129]
[1773033755307,11.96916742,83.548,83.523,4.22521129]
[1773033756222,4.0785435,83.569,83.531,4.22521129]
[1773033756416,11.9652314,83.576,83.541,4.22521129]
[1773033756616,4.82477569,83.622,83.522,41.90512678]
[1773033756617,4.0785435,83.586,83.551,4.22521129]
[1773033757226,4.0785435,83.586,83.553,4.22521129]
[1773033757411,11.96406673,83.584,83.553,4.22521129]
[1773033757613,15.84825154,83.58,83.553,4.22521129]
[1773033758119,15.84825154,83.57,83.547,11.96927021]
[1773033758514,4.0785435,83.57,83.547,11.96927021]
[1773033759031,4.0785435,83.569,83.535,11.9710301]
[1773033759212,4.0785435,83.569,83.535,16.19624139]
[1773033759614,4.0785435,83.569,83.448,11.96429853]
[1773033759615,4.0785435,83.559,83.527,11.97211131]
[1773033760629,4.0785435,83.581,83.541,4.22521129]
[1773033760823,4.0785435,83.579,83.541,4.22521129]
[1773033761133,11.76970804,83.57,83.541,4.22521129]
[1773033761432,4.0785435,83.568,83.542,11.97002705]
[1773033761931,11.96527969,83.576,83.543,4.22521129]
[1773033762230,11.76970804,83.57,83.543,4.22521129]
[1773033762621,4.0785435,83.569,83.542,11.97002705]
[1773033763334,4.0785435,83.569,83.537,29.92675433]
[1773033763532,11.76970804,83.58,83.541,4.22521129]
[1773033763716,11.76970804,83.58,83.551,4.22521129]
[1773033764029,15.84825154,83.58,83.551,4.22521129]
[1773033764220,4.0785435,83.579,83.551,4.22521129]
[1773033765338,11.14824686,83.583,83.551,4.22521129]
[1773033765518,11.14824686,83.583,83.55,11.76970804]
[1773033765519,11.14824686,83.583,83.553,4.22521129]
[1773033766537,11.96122476,83.604,83.571,4.22521129]
[1773033767123,11.78439634,83.6,83.571,4.22521129]
[1773033767317,15.86293984,83.6,83.571,4.22521129]
[1773033767735,4.0785435,83.598,83.568,11.96629919]
[1773033768241,4.0785435,83.589,83.563,11.96691867]
[1773033768938,11.96186557,83.599,83.57,11.78439634]
[1773033768939,16.04040907,83.599,83.57,11.78439634]
[1773033769240,4.0785435,83.598,83.564,4.22521129]
[1773033769435,4.0785435,83.589,83.563,11.96691867]
[1773033770231,4.0785435,83.598,83.564,4.22521129]
[1773033770451,4.0785435,83.598,83.57,11.78439634]
[1773033770827,4.0785435,83.607,83.571,4.22521129]
[1773033771353,4.0785435,83.607,83.58,11.78439634]
[1773033772331,4.0785435,83.607,83.581,11.96444167]
[1773033772729,11.95844248,83.623,83.591,4.22521129]
[1773033773534,16.03698598,83.623,83.591,4.22521129]
[1773033774162,4.0785435,83.622,83.592,11.96286726]
[1773033774348,4.0785435,83.619,83.582,16.18950982]
[1773033774531,4.0785435,83.619,83.583,4.22521129]
[1773033775162,4.0785435,83.619,83.582,41.87504486]
[1773033775163,0.34216157,83.64,83.591,4.22521129]
[1773033775328,47.76727557,83.74,83.582,41.87504486]
[1773033775329,11.78439634,83.66,83.621,4.22521129]
[1773033775523,4.0785435,83.669,83.64,11.78439634]
[1773033775740,4.0785435,83.669,83.641,4.22521129]
[1773033776246,4.0785435,83.679,83.651,11.95442971]
[1773033777735,4.0785435,83.695,83.661,4.22521129]
[1773033778050,4.0785435,83.695,83.67,11.78439634]
[1773033778248,4.0785435,83.695,83.662,11.95285792]
[1773033778432,4.0785435,83.695,83.67,11.78439634]
[1773033779654,4.0785435,83.695,83.662,41.83500274]
[1773033780350,4.0785435,83.669,83.631,4.22521129]
[1773033780651,11.78439634,83.64,83.62,11.95886045]
[1773033780848,11.78439634,83.64,83.612,4.22521129]
[1773033780849,11.78439634,83.64,83.614,11.95958789]
[1773033781146,4.0785435,83.649,83.61,11.78439634]
[1773033781349,4.0785435,83.649,83.62,11.78439634]
[1773033781554,15.86293984,83.66,83.63,11.78439634]
[1773033781733,4.0785435,83.659,83.631,4.22521129]
[1773033781934,4.0785435,83.659,83.623,26.07663548]
[1773033782447,4.0785435,83.659,83.624,46.07922448]
[1773033782633,15.86293984,83.67,83.631,4.22521129]
[1773033782832,15.86293984,83.67,83.633,4.22521129]
[1773033783031,11.78439634,83.66,83.633,26.07663548]
[1773033783233,4.05330408,83.649,83.633,17.96865458]
[1773033783636,0.28432314,83.67,83.634,4.43433942]
[1773033783637,4.05330408,83.669,83.634,4.43433942]
[1773033783850,4.05330408,83.669,83.634,28.88937872]
[1773033784248,4.05330408,83.669,83.641,41.84550638]
[1773033784557,11.78439634,83.67,83.641,46.2798458]
[1773033784729,15.83770042,83.67,83.641,16.39019838]
[1773033784929,4.05330408,83.669,83.641,11.95585896]
[1773033785239,4.05330408,83.668,83.641,11.95585896]
[1773033786362,4.05330408,83.677,83.644,4.43433942]
[1773033786564,11.78439634,83.68,83.644,4.43433942]
[1773033786861,11.78439634,83.68,83.651,4.43433942]
[1773033787849,11.78439634,83.67,83.643,41.84450581]
[1773033788156,4.05330408,83.678,83.643,16.38991251]
[1773033788454,4.05330408,83.678,83.644,4.43433942]
[1773033788635,11.95071525,83.677,83.644,4.43433942]
[1773033788835,4.47727223,83.676,83.644,4.43433942]
[1773033790262,4.47727223,83.676,83.634,24.4550393]